Cogmind - Beta 14 @@@ ROGUE MODE // 2025.01.03 @ 20:03:28 // Winter2022/Polymind Player: Demo Result: Destroyed by G-47 Trooper with Particle Gun Performance ------------- Evolutions (0) 0 Regions Visited (1) 200 Robots Destroyed (9) 45 Value Destroyed (227) 227 Prototype IDs (0) 0 Alien Tech Used (0) 0 Bonus (560) 560 TOTAL SCORE: 562 Bonus ------- Polymind Skill 560 Cogmind --------- Core Integrity 0/250 Matter 0/0 Energy 110/110 System Corruption 0% Temperature Cool (83) Movement Walking (120) Location -10/Materials Parts ------- > --- POWER (1) -------- Light Nuclear Core > --- PROPULSION (2) --- Aluminum Leg Aluminum Leg > --- UTILITY (1) ------ Improved Heat Sink > --- WEAPON (1) ------- Particle Gun > --- INVENTORY (1) ---- (None) Peak State ------------ > --- POWER ------------ Light Nuclear Core > --- PROPULSION ------- Aluminum Leg Aluminum Leg > --- UTILITY ---------- Improved Heat Sink > --- WEAPON ----------- Particle Gun > --- INVENTORY -------- (None) [Rating: 10] Favorites ----------- Power Ion Engine Engine Ion Engine Power Core Light Nuclear Core Propulsion Aluminum Leg Leg Aluminum Leg Utility Heat Sink Device Heat Sink Weapon Small Laser Energy Gun Small Laser Build | -11 -10 ------- Run | Yrd Mat Slots Evolved . | . . Power . | . . Propulsion . | . . Utility . | . . Weapon . | . . Parts Attached . | . . Power . | . . Engine . | . . Core . | . . Reactor . | . . Propulsion . | . . Treads . | . . Leg . | . . Wheel . | . . Hover . | . . Flight . | . . Utility . | . . Device . | . . Storage . | . . Processor . | . . Hackware . | . . Protection . | . . Artifact . | . . Weapon . | . . Energy Gun . | . . Energy Cannon . | . . Ballistic Gun . | . . Ballistic Cannon . | . . Launcher . | . . Special Weapon . | . . Impact Weapon . | . . Slashing Weapon . | . . Piercing Weapon . | . . Special Melee Weapon . | . . Unidentified Prototypes . | . . Parts Lost 3 | . 3 Power 1 | . 1 Propulsion 1 | . 1 Utility . | . . Weapon 1 | . 1 Highest Loss Streak 3 | . 3 To Critical Strikes . | . . Average Slot Usage (%) 96 | . 96 Engine 18 | . 18 Leg 38 | . 38 Device 19 | . 19 Energy Gun 18 | . 18 Peak Build Rating 10 | . 10 Average Rating 4 | . 4 On Entrance . | . . Naked Turns 16 | . 16 Heaviest Build 7 | . 7 Greatest Support 20 | 3 20 Greatest Overweight (x) . | . . Average Overweight (x) . | . . Largest Inventory Capacity 1 | . 1 Average Capacity . | . . Most Carried . | . . Average Carried . | . . Final Capacity 1 | . 1 Final Carried . | . . Class Distribution -------------------- 97% | Grunt Dominant Class ---------------- Grunt | -10/Materials Resources | -11 -10 ----------- Run | Yrd Mat Matter Collected . | . . Remotely . | . . Salvage Created 300 | . 300 Parts 16 | . 16 Haulers Intercepted . | . . Recyclers Shooed 3 | . 3 Parts Field Recycled . | . . Retrieved Matter . | . . Parts Self-Destructed . | . . Prevented . | . . Kills | -11 -10 ------- Run | Yrd Mat Combat Hostiles Destroyed 5 | . 5 Guns 5 | . 5 Classes Destroyed 3 | . 3 Recycler 2 | . 2 Operator 2 | . 2 Grunt 5 | . 5 Best Kill Streak 2 | . 2 Combat Bots Only 1 | . 1 Max Kills in Single Turn 1 | . 1 Gunslinging . | . . Exploded . | . . Melee . | . . Uniques/NPCs Destroyed . | . . Combat | -11 -10 -------- Run | Yrd Mat Hostile Shots Fired 67 | . 67 Missed 21 | . 21 Damage Taken 639 | . 639 Core 260 | . 260 Absorbed by Shields . | . . Core Remaining (%) 100 | 100 . Volleys Fired 76 | . 76 Largest 1 | . 1 Hottest 65 | . 65 Shots Fired 76 | . 76 Gun 76 | . 76 Cannon . | . . Launcher . | . . Special . | . . Kinetic . | . . Thermal 76 | . 76 Explosive . | . . Electromagnetic . | . . Robot Hit Streak 10 | . 10 Robot Miss Streak 2 | . 2 Penetration Max . | . . Secondary Targets . | . . Shots Hit Robots 47 | . 47 Core Hits 20 | . 20 Critical Kills . | . . Critical Parts Destroyed . | . . Critical Strikes 1 | . 1 Burn 1 | . 1 Melee Attacks . | . . Impact . | . . Slashing . | . . Piercing . | . . Sneak Attacks . | . . Combat Hostiles . | . . Follow-up Attacks . | . . Damage Inflicted 605 | . 605 Guns 590 | . 590 Cannons . | . . Explosions . | . . Melee . | . . Ramming 15 | . 15 Kinetic . | . . Thermal 590 | . 590 Explosive . | . . Electromagnetic . | . . Impact . | . . Slashing . | . . Piercing . | . . Highest Corruption . | . . Average Corruption . | . . Corruption Purged . | . . Corruption Blocked . | . . Overload Shots . | . . Overflow Damage . | . . Projectiles . | . . Explosions . | . . Melee . | . . Knockbacks . | . . Impact . | . . Kinetic . | . . Secondary . | . . Self-Inflicted Damage . | . . Shots . | . . Rammed . | . . Targets Rammed 9 | . 9 Kicked 9 | . 9 Crushed . | . . Highest Temperature 75 | . 75 Average Temperature 31 | . 31 Received Heat Transfer 363 | . 363 Siege Activations . | . . Robots Corrupted . | . . Combat Hostiles . | . . Parts Fried . | . . Impact Corruptions . | . . Robots Melted . | . . Combat Hostiles . | . . Parts Melted 1 | . 1 Heat Transferred 1382 | . 1382 Parts Sabotaged . | . . Parts Stolen . | . . Parts Stripped . | . . Power Chain Reactions . | . . Alert | -11 -10 ------- Run | Yrd Mat Peak Influence 120 | . 120 Initial . | . . Average 52 | . 53 Maximum Alert Level . | . . Low Security (%) 100 | 100 100 Level 1 . | . . Level 2 . | . . Level 3 . | . . Level 4 . | . . Level 5 . | . . High Security . | . . Max Security . | . . Squads Dispatched 3 | . 3 Investigation 2 | . 2 Extermination . | . . Reinforcement 1 | . 1 Assault . | . . Garrison . | . . Intercept . | . . Searches Triggered . | . . Construction Impeded . | . . Haulers Reinforced . | . . Active Scanning Responses . | . . Cargo Convoy Interrupts . | . . Stealth | -11 -10 --------- Run | Yrd Mat Distress Signals . | . . Communications Jammed . | . . Distress Signals . | . . Times Spotted 20 | . 20 Peak Tracking Total 4 | . 4 Tactical Retreats . | . . Traps | -11 -10 ------- Run | Yrd Mat Traps Triggered . | . . Indirectly . | . . Trap Hack Attempts . | . . Triggered . | . . Disarmed . | . . Reprogrammed . | . . Reused . | . . Traps Extracted . | . . Installed . | . . Triggered . | . . Machines | -11 -10 ---------- Run | Yrd Mat Machines Disabled . | . . Max in Single Turn . | . . Machines Repaired . | . . Machines Dismantled . | . . Machines Sabotaged . | . . Overloaded Fab Kills . | . . Hacking | -11 -10 --------- Run | Yrd Mat Machines Accessed 2 | . 2 Terminals 2 | . 2 Fabricators . | . . Repair Stations . | . . Recycling Units . | . . Scanalyzers . | . . Garrison Access . | . . Total Hacks 5 | . 5 Successful 1 | . 1 Failed 4 | . 4 Catastrophic 1 | . 1 Database Lockouts . | . . Manual 4 | . 4 Terminals 5 | . 5 Fabricators . | . . Repair Stations . | . . Recycling Units . | . . Scanalyzers . | . . Garrison Access . | . . Terminal Hacks 1 | . 1 Locate Traps 1 | . 1 Fabricator Hacks . | . . Repair Station Hacks . | . . Recycling Unit Hacks . | . . Scanalyzer . | . . Garrison Access Hacks . | . . Unauthorized Hacks . | . . Terminals . | . . Fabricators . | . . Repair Stations . | . . Recycling Units . | . . Scanalyzers . | . . Garrison Access . | . . Data Cores Recovered 1 | . 1 Used 1 | . 1 Hacking Detections 2 | . 2 Full Trace Events 2 | . 2 Feedback Events . | . . Feedback Blocked . | . . Robot Schematics Acquired . | . . Robots Built . | . . Authchips . | . . Time . | . . Total Robot Build Rating . | . . Part Schematics Acquired . | . . Parts Built . | . . Authchips . | . . Time . | . . Total Part Build Rating . | . . Parts Repaired . | . . Time . | . . Parts Recycled . | . . Recycled Matter . | . . Retrieved Matter . | . . Retrieved Components . | . . Parts Scanalyzed . | . . Part Schematics Acquired . | . . Parts Damaged . | . . Bothacking | -11 -10 ------------ Run | Yrd Mat Used RIF Installer . | . . Robots Hacked 2 | . 2 Non-combat . | . . Combat 2 | . 2 Robot Hacks Applied 2 | . 2 find_shortcuts 2 | . 2 Relay Couplers Released . | . . Fabnet Peak Effective % . | . . Robots Rewired . | . . Allies Hacked . | . . Hacks Repelled . | . . Allies | -11 -10 -------- Run | Yrd Mat Total Allies . | . . Largest Group . | . . Highest-Rated Group . | . . Highest-Rated Ally . | . . Total Orders . | . . Ally Attacks . | . . Total Damage . | . . Kills . | . . Allies Corrupted . | . . Allies Melted . | . . Intel | -11 -10 ------- Run | Yrd Mat Robot Analysis Total 2 | . 2 Derelict Logs Recovered . | . . Drone Launches . | . . Drone Recoveries . | . . Exploration | -11 -10 ------------- Run | Yrd Mat Turns Passed 582 | 9 573 Spaces Moved 229 | 18 211 Core 48 | 18 30 Treads . | . . Legs 181 | . 181 Wheels . | . . Hover . | . . Flight . | . . Fastest Speed 50 | 50 50 Average Speed 105 | 50 110 Slowest Speed 120 | 50 120 Overloaded Moves . | . . Propulsion Burnouts . | . . Robots Hopped . | . . Cave-ins Triggered . | . . Exploration Rate (%) 25 | 4 47 Regions Visited 1 Branch Regions . Pre-discovered Areas . | . . Known Exits Taken . | . . Unknown Exits Taken 1 | 1 . Scrap Searched . | . . Spaces Dug . | . . Terrain Destroyed . | . . Melee . | . . Projectile . | . . AOE . | . . Terrain Rammed . | . . Walls Destroyed . | . . Machines Disabled . | . . Actions | -11 -10 --------- Run | Yrd Mat Total 491 | 17 474 Wait 178 | . 178 Move 228 | 17 211 Hop . | . . Pick Up . | . . Fast Attach . | . . Attach . | . . Detach . | . . Swap . | . . Drop . | . . Fire 76 | . 76 Melee . | . . Ram . | . . Kick 9 | . 9 Crush . | . . Escape Stasis . | . . Rewire . | . . Trap . | . . Miscellaneous . | . . Route ------- -11/Scrapyard -10/Materials (discovered 1 exit: [*Mat]) History --------- Turn | Location | Event 3 | -11/Scrapyard | Discovered new exit (range 15) 10 | -11/Scrapyard | Entered Materials 498 | -10/Materials | Discovered new exit (range 15) 547 | -10/Materials | Core integrity fell below 50% 561 | -10/Materials | Core integrity fell below 20% 583 | -10/Materials | Destroyed by G-47 Trooper with Particle Gun Last Messages --------------- 00549_ Kicked G-47 Trooper out of the way. 00550_ Kicked G-47 Trooper. 00552_ Kicked G-47 Trooper out of the way. 00553_ Kicked G-47 Trooper. 00556_ Kicked G-47 Trooper out of the way. 00558_ Kicked G-47 Trooper. 00558_ Ion Engine destroyed. 00559_ Kicked G-47 Trooper. 00560_ Released control of G-34 Mercenary. 00562_ Took control of G-47 Trooper. 00562_ Extracted analysis data for G-47 Trooper. 00562_ G-34 Mercenary reactivates. 00564_ M-13 Machinist repairs Lgt. Nuclear Core. 00571_ G-34 Mercenary suffers critical hit (Burn). 00571_ G-34 Mercenary destroyed. 00572_ K-01 Serf collects debris. 00577_ R-06 Scavenger collects Aluminum Leg. 00581_ K-01 Serf collects debris. 00581_ R-06 Scavenger collects Sml. Laser. Map ----- +----------------------------------------------------+ | | | | | | | | | | | | | | | | | | | | | ?????????????????????????????????????????????????? | | ?????????????????????????????????????????????????? | | ?????????????????????????????????????????????????? | | ?????????????????????????????????????????????????? | | ????????????????????????""""?????????????????????? | | ###?????????????????????"""??????????????????????? | | #!!!????????????????????"""??????????????????????? | | ! ???????????????????""???????????????????????? | | ?????????????????? ???????????????????????? | | ###########+######+#############???????????? | | ^ ??????????? | | ^ ??????????? | | ^ g %! ??????????? | | ######### =^^ #### k #####+?????????????????? | | ??????#"" #??# #??????????????????????? | | ??????#"Y ^ == #??# %g#??????????????????????? | | ??????#"" = #??# w#??????????????????????? | | ??????### ! #??# %#??????????????????????? | | ######### #??# r#??????????????????????? | | #??# g #??????????????????????? | | ##########"""T"""# #??# %%#??????????????????????? | | #????????#########+#??# #??????????????????????? | | #?????????????????? ??# #??????????????????????? | | #?????????????????????# #??????????????????????? | | #?????????????????????# #??????????????????????? | | #?????????????????????# #??????????????????????? | | #????????? #?????????# #??????????????????????? | | #####+## ????????? ??????????????????????? | | #???????? ??????????????????????? | | +????????] ??????????????????????? | | #???????# ??????????????????????? | | #### ## ????????# ??????????????????????? | | #???????????????????## ##?????????????????????? | | #????????????????????# ???????????????????????? | | #????????????????????? ???????????????????????? | | #???????????????????????????????????????????????? | | #??????????##???????????????????????????????????? | | #?????????? ???????????????????????????????????? | | #????????? ????????????????????????????????????? | | #????????? ????????????????????????????????????? | +----------------------------------------------------+ Best States ------------- Heat Dissipation 40 Energy Generation 19 Energy Capacity 200 Sight Range 16 Terrain Scan Density 10 Evasion (%) 55 Item Schematics ----------------- None Robot Schematics ------------------ None Fabricated ------------ Nothing Alien Tech Used ----------------- None Achievements -------------- None Challenges ------------ None Polymind | -11 -10 ---------- Run | Yrd Mat Hosts 2 | . 2 Combat Hostiles 2 | . 2 Allies . | . . Unique Host Classes 1 | . 1 Average Host Suspicion 100 | . 100 Unsuspicious Activity . | . . Returns to Shadow . | . . Fuzzy Dispatches . | . . Protomatter Created 33 | . 33 Used 45 | . 45 Decayed . | . . Highest Spend 30 | . 30 Top 5 Hosts by Kills: G-34 Mercenary (-10/Materials: 4) G-47 Trooper (-10/Materials: 1) Game ------ Seed RecoilGlidesysArray Manual? 0 Play Time 00:04:49 Cumulative 122.3 hours Start 2025.01.03 @ 20:01:01 End 2025.01.03 @ 20:03:28 Sessions 1 Manual Loads 0 Difficulty Rogue Special Mode Winter2022/Polymind Game No. 153 Rogue 153 Adventurer 0 Explorer 0 Win Type - Total 1 Types 1/0/0/0/0/0/0/0/0 Lore% 54 Gallery% 67 Achievement% 53 Wizard Run 0 Options --------- Layout 1 ASCII 0 Keyboard 0 Movement Numpad Keybinds 0 Fullscreen 1 Font 24/Smallcaps Map View 50x35 Zoom Use 0% Tactical HUD 1 Map Filters NONE Filters NONE Steam 1 RUN: 81535e99-e87b-4642-91b7-4bd3a1c1266f